fUSD/lending_fUSD_20250329
["ID","MTS","AMOUNT","RATE_DAILY","PERIOD"]
[356810095,1743235893988,-1143.8,0.00042739,2]
[356810096,1743235893997,-1389.75,0.00042739,30]
[356810097,1743235894008,-500.0,0.00042739,30]
[356810098,1743235894019,-1145.24,0.00042739,30]
[356810099,1743235894028,-1315.47,0.00042739,7]
[356810100,1743235894038,-644.97,0.00042739,30]
[356810101,1743235894049,-620.95,0.00042739,30]
[356810102,1743235894058,-500.0,0.00042739,30]
[356810103,1743235894068,-704.24,0.00042739,30]
[356810104,1743235894079,-635.2,0.00042739,30]
[356810105,1743235894089,-1673.28,0.00042739,30]
[356810106,1743235894099,-2622.65,0.00042739,30]
[356810107,1743235894109,-500.0,0.00042739,30]
[356810108,1743235894119,-5318.98,0.00042739,12]
[356810109,1743235894128,-11680.42,0.00042739,30]
[356810110,1743235894138,-2113.54,0.00042739,30]
[356810111,1743235894148,-1037.22,0.00042739,30]
[356810112,1743235894158,-692.57,0.00042739,30]
[356810113,1743235894168,-7670.5,0.00042739,30]
[356810114,1743235894179,-1131.76,0.00042739,30]
[356810115,1743235894188,-1046.12,0.00042739,30]
[356810116,1743235894198,-562.84,0.00042739,30]
[356810117,1743235894209,-7414.18,0.00042739,2]
[356810118,1743235894219,-597.41,0.00042739,30]
[356810119,1743235894229,-28801.3,0.00042739,30]
[356810120,1743235894240,-620.17,0.00042739,30]
[356810121,1743235894251,-949.41,0.00042739,30]
[356810122,1743235894262,-1156.07,0.00042739,30]
[356810123,1743235894273,-387.27013311,0.00042739,30]
[356810124,1743235894284,-2905.13,0.00042739,30]
[356810125,1743235894294,-7170.52,0.00042739,2]
[356810126,1743235894306,-670.96,0.00042739,30]
[356810127,1743235894319,-500.0,0.00042778,30]
[356810128,1743235894330,-150.0,0.00042799,120]
[356810129,1743235894341,-150.0,0.00042799,120]
[356810130,1743235894353,-150.0,0.00042799,30]
[356810131,1743235894365,-2601.86,0.000428,2]
[356810132,1743235894377,-2601.86,0.000428,2]
[356810133,1743235894387,-1039876.47972843,0.000428,120]
[356810134,1743235894398,-3248.86,0.000428,2]
[356810135,1743235894408,-3248.86,0.000428,2]
[356810136,1743235894418,-242.78458343,0.000428,2]
[356810137,1743235894428,-150.0,0.00042807,30]
[356810138,1743235894438,-500.0,0.00042816,30]
[356810139,1743235894448,-150.0,0.00042879,30]
[356810140,1743235894458,-150.0,0.00042893,30]
[356810141,1743235894468,-150.0,0.00042896,30]
[356810142,1743235894478,-200.0,0.000429,120]
[356810143,1743235894489,-587.060768,0.00042926,30]
[356810144,1743235894499,-500.0,0.00042948,30]
[356810145,1743235894508,-150.0,0.00042958,30]
[356810146,1743235894518,-500.0,0.00042974,30]
[356810147,1743235894527,-150.0,0.00042979,30]
[356810148,1743235894538,-468.55793411,0.00043,120]
[356810149,1743235894548,-1523.9740312,0.00043,30]
[356810150,1743235894558,-176.0,0.00043,120]
[356810151,1743235894567,-231.37826436,0.00043,120]
[356810152,1743235894578,-700.0,0.00043,2]
[356810153,1743235894588,-176.70413993,0.00043,14]
[356810154,1743235894598,-500.0,0.00043002,30]
[356810155,1743235894607,-507.09,0.00043013,10]
[356810156,1743235894616,-963.21,0.00043013,30]
[356810157,1743235894626,-2452.46,0.00043013,30]
[356810158,1743235894636,-1143.8,0.00043013,2]
[356810159,1743235894645,-1389.75,0.00043013,30]
[356810160,1743235894655,-500.0,0.00043013,30]
[356810161,1743235894664,-1145.24,0.00043013,30]
[356810162,1743235894676,-1315.47,0.00043013,7]
[356810163,1743235894686,-644.97,0.00043013,30]
[356810164,1743235894695,-620.95,0.00043013,30]
[356810165,1743235894705,-500.0,0.00043013,30]
[356810166,1743235894715,-704.24,0.00043013,30]
[356810167,1743235894724,-635.2,0.00043013,30]
[356810168,1743235894734,-1673.28,0.00043013,30]
[356810169,1743235894743,-2622.65,0.00043013,30]
[356810170,1743235894753,-500.0,0.00043013,30]
[356810171,1743235894766,-5318.98,0.00043013,12]
[356810172,1743235894775,-11680.42,0.00043013,30]
[356810173,1743235894785,-2113.54,0.00043013,30]
[356810174,1743235894796,-1037.22,0.00043013,30]
[356810175,1743235894806,-692.57,0.00043013,30]
[356810176,1743235894816,-7670.5,0.00043013,30]
[356810177,1743235894827,-1131.76,0.00043013,30]
[356810178,1743235894837,-1046.12,0.00043013,30]
[356810179,1743235894848,-562.84,0.00043013,30]
[356810180,1743235894858,-7414.18,0.00043013,2]
[356810181,1743235894869,-597.41,0.00043013,30]
[356810182,1743235894879,-28801.3,0.00043013,30]
[356810183,1743235894889,-620.17,0.00043013,30]
[356810184,1743235894900,-949.41,0.00043013,30]
[356810185,1743235894911,-1156.07,0.00043013,30]
[356810186,1743235894921,-2905.13,0.00043013,30]
[356810187,1743235894931,-7170.52,0.00043013,2]
[356810188,1743235894941,-670.96,0.00043013,30]
[356810189,1743235894951,-500.0,0.00043035,30]
[356810190,1743235894962,-150.0,0.00043037,30]
[356810191,1743235894971,-1065.0,0.0004305,30]
[356810192,1743235894983,-500.0,0.00043064,30]
[356810193,1743235894993,-150.0,0.00043066,30]
[356810194,1743235895002,-150.0,0.00043072,30]
[356810195,1743235895012,-2601.86,0.000431,2]
[356810196,1743235895023,-150.0,0.00043116,30]
[356810197,1743235895032,-297.26913804,0.00043119,30]
[356810198,1743235895042,-255.80610517,0.00043119,30]
[356810199,1743235895052,-255.80610517,0.00043119,30]
[356810200,1743235895063,-150.0,0.00043119,30]
[356810201,1743235895074,-150.0,0.00043152,30]
[356810202,1743235895084,-500.0,0.00043175,30]
[356810203,1743235895094,-184.19,0.00043183,2]
[356810204,1743235895105,-500.0,0.00043192,30]
[356810205,1743235895115,-150.0,0.00043195,30]
[356810206,1743235895126,-500.0,0.00043215,30]
[356810207,1743235895136,-150.0,0.00043238,30]
[356810208,1743235895147,-150.0,0.00043248,30]
[356810209,1743235895334,-150.0,0.00043248,30]
[356810210,1743235895346,-150.0,0.00043274,30]
[356810211,1743235895355,-507.09,0.00043287,10]
[356810212,1743235895366,-963.21,0.00043287,30]
[356810213,1743235895376,-2452.46,0.00043287,30]
[356810214,1743235895386,-1143.8,0.00043287,2]
[356810215,1743235895395,-1389.75,0.00043287,30]
[356810216,1743235895404,-500.0,0.00043287,30]
[356810217,1743235895413,-1145.24,0.00043287,30]
[356810218,1743235895423,-1315.47,0.00043287,7]
[356810219,1743235895433,-644.97,0.00043287,30]
[356810220,1743235895443,-620.95,0.00043287,30]
[356810221,1743235895453,-500.0,0.00043287,30]
[356810222,1743235895463,-704.24,0.00043287,30]
[356810223,1743235895472,-635.2,0.00043287,30]
[356810224,1743235895482,-1673.28,0.00043287,30]
[356810225,1743235895492,-2622.65,0.00043287,30]
[356810226,1743235895502,-500.0,0.00043287,30]
[356810227,1743235895511,-5318.98,0.00043287,12]
[356810228,1743235895521,-11680.42,0.00043287,30]
[356810229,1743235895531,-2113.54,0.00043287,30]
[356810230,1743235895541,-1037.22,0.00043287,30]
[356810231,1743235895550,-692.57,0.00043287,30]
[356810232,1743235895561,-7670.5,0.00043287,30]
[356810233,1743235895570,-1131.76,0.00043287,30]
[356810234,1743235895580,-1046.12,0.00043287,30]
[356810235,1743235895589,-562.84,0.00043287,30]
[356810236,1743235895599,-7414.18,0.00043287,2]
[356810237,1743235895608,-597.41,0.00043287,30]
[356810238,1743235895618,-28801.3,0.00043287,30]
[356810239,1743235895627,-620.17,0.00043287,30]
[356810240,1743235895637,-949.41,0.00043287,30]
[356810241,1743235895648,-1156.07,0.00043287,30]
[356810242,1743235895659,-2905.13,0.00043287,30]
[356810243,1743235895670,-7170.52,0.00043287,2]
[356810244,1743235895680,-670.96,0.00043287,30]
[356810245,1743235895690,-150.0,0.00043324,30]
[356810246,1743235895703,-150.0,0.00043353,30]
[356810247,1743235895713,-501.17139569,0.00043364,30]
[356810248,1743235895724,-152.69,0.00043408,2]
[356810249,1743235895737,-150.0,0.00043411,30]
[356810250,1743235895747,-150.0,0.00043424,30]
[356810251,1743235895757,-150.0,0.00043432,30]
[356810252,1743235895767,-587.060768,0.0004345,30]
[356810253,1743235895776,-150.0,0.00043497,30]
[356810254,1743235895785,-158.032911,0.00043498,120]
[356810255,1743235895796,-150.0,0.00043511,30]
[356810256,1743235895805,-150.0,0.0004356,120]
[356810257,1743235895815,-507.09,0.00043561,10]
[356810258,1743235895824,-963.21,0.00043561,30]
[356810259,1743235895836,-2452.46,0.00043561,30]
[356810260,1743235895846,-1143.8,0.00043561,2]
[356810261,1743235895856,-1389.75,0.00043561,30]
[356810262,1743235895866,-541.22391764,0.00043561,30]
[356810263,1743235895875,-1145.24,0.00043561,30]
[356810264,1743235895885,-1315.47,0.00043561,7]
[356810265,1743235895895,-644.97,0.00043561,30]
[356810266,1743235895906,-620.95,0.00043561,30]
[356810267,1743235895915,-500.0,0.00043561,30]
[356810268,1743235895926,-704.24,0.00043561,30]
[356810269,1743235895935,-635.2,0.00043561,30]
[356810270,1743235895945,-1673.28,0.00043561,30]
[356810271,1743235895955,-2622.65,0.00043561,30]
[356810272,1743235895965,-500.0,0.00043561,30]
[356810273,1743235895975,-5318.98,0.00043561,12]
[356810274,1743235895985,-11680.42,0.00043561,30]
[356810275,1743235895994,-2113.54,0.00043561,30]
[356810276,1743235896005,-1037.22,0.00043561,30]
[356810277,1743235896015,-692.57,0.00043561,30]
[356810278,1743235896025,-7670.5,0.00043561,30]
[356810279,1743235896035,-1131.76,0.00043561,30]
[356810280,1743235896044,-1046.12,0.00043561,30]
[356810281,1743235896055,-562.84,0.00043561,30]
[356810282,1743235896064,-7414.18,0.00043561,2]
[356810283,1743235896074,-597.41,0.00043561,30]
[356810284,1743235896085,-28801.3,0.00043561,30]
[356810285,1743235896095,-620.17,0.00043561,30]
[356810286,1743235896104,-949.41,0.00043561,30]
[356810287,1743235896115,-1156.07,0.00043561,30]
[356810288,1743235896126,-2905.13,0.00043561,30]
[356810289,1743235896137,-7170.52,0.00043561,2]
[356810290,1743235896147,-670.96,0.00043561,30]
[356810291,1743235896157,-150.0,0.00043583,30]
[356810292,1743235896167,-150.0,0.00043591,30]
[356810293,1743235896178,-500.0,0.00043598,30]
[356810294,1743235896188,-150.0,0.00043599,30]
[356810295,1743235896198,-150.0,0.0004367,30]
[356810296,1743235896208,-150.0,0.0004367,30]
[356810297,1743235896219,-500.0,0.00043689,30]
[356810298,1743235896229,-206.09359039,0.000437,120]
[356810299,1743235896239,-500.0,0.0004374,60]
[356810300,1743235896248,-150.0,0.00043749,30]
[356810301,1743235896259,-500.0,0.00043754,30]
[356810302,1743235896269,-150.0,0.00043756,30]
[356810303,1743235896279,-301.63745312,0.0004377,3]
[356810304,1743235896288,-150.0,0.00043775,30]
[356810305,1743235896298,-150.0,0.00043775,30]
[356810306,1743235896308,-150.94,0.00043793,2]
[356810307,1743235896318,-477.86907711,0.000438,30]
[356810308,1743235896328,-152.51,0.000438,36]
[356810309,1743235896339,-152.51,0.000438,36]
[356810310,1743235896348,-152.51,0.000438,36]
[356810311,1743235896358,-152.51,0.000438,36]
[356810312,1743235896367,-152.51,0.000438,36]
[356810313,1743235896377,-152.51,0.000438,36]
[356810314,1743235896387,-152.51,0.000438,36]
[356810315,1743235896397,-152.51,0.000438,36]
[356810316,1743235896407,-152.51,0.000438,36]
[356810317,1743235896416,-152.51,0.000438,36]
[356810318,1743235896426,-152.51,0.000438,36]
[356810319,1743235896435,-152.51,0.000438,36]
[356810320,1743235896445,-152.51,0.000438,36]
[356810321,1743235896454,-152.51,0.000438,36]
[356810322,1743235896463,-152.51,0.000438,36]
[356810323,1743235896473,-152.51,0.000438,36]
[356810324,1743235896482,-152.51,0.000438,36]
[356810325,1743235896492,-152.51,0.000438,36]
[356810326,1743235896501,-152.51,0.000438,36]
[356810327,1743235896512,-152.51,0.000438,36]
[356810328,1743235896522,-152.51,0.000438,36]
[356810329,1743235896532,-152.51,0.000438,36]
[356810330,1743235896541,-150.0,0.00043828,30]
[356810331,1743235896551,-507.09,0.00043835,10]
[356810332,1743235896561,-963.21,0.00043835,30]
[356810333,1743235896570,-2452.46,0.00043835,30]
[356810334,1743235896581,-1143.8,0.00043835,2]
[356810335,1743235896591,-1389.75,0.00043835,30]
[356810336,1743235896604,-1000.0,0.00043835,120]
[356810337,1743235896614,-1000.0,0.00043835,120]
[356810338,1743235896623,-1056.80434223,0.00043835,120]
[356810339,1743235896633,-1145.24,0.00043835,30]
[356810340,1743235896642,-1315.47,0.00043835,7]
[356810341,1743235896651,-740.3233902,0.00043835,30]
[356810342,1743235896663,-644.97,0.00043835,30]
[356810343,1743235896678,-620.95,0.00043835,30]
[356810344,1743235896701,-213.08817999,0.00043835,30]
[356810345,1743235896712,-704.24,0.00043835,30]
[356810346,1743235896721,-635.2,0.00043835,30]
[356810347,1743235896731,-1673.28,0.00043835,30]
[356810348,1743235896742,-1000.0,0.00043835,120]
[356810349,1743235896751,-2622.65,0.00043835,30]
[356810350,1743235896761,-500.0,0.00043835,30]
[356810351,1743235896771,-5318.98,0.00043835,12]
[356810352,1743235896781,-11680.42,0.00043835,30]
[356810353,1743235896792,-2113.54,0.00043835,30]
[356810354,1743235896802,-1037.22,0.00043835,30]
[356810355,1743235896812,-692.57,0.00043835,30]
[356810356,1743235896821,-7670.5,0.00043835,30]
[356810357,1743235896833,-1131.76,0.00043835,30]
[356810358,1743235896844,-1046.12,0.00043835,30]
[356810359,1743235896853,-562.84,0.00043835,30]
[356810360,1743235896863,-7414.18,0.00043835,2]
[356810361,1743235896872,-597.41,0.00043835,30]
[356810362,1743235896882,-28801.3,0.00043835,30]
[356810363,1743235896892,-620.17,0.00043835,30]
[356810364,1743235896902,-949.41,0.00043835,30]
[356810365,1743235896912,-1156.07,0.00043835,30]
[356810366,1743235896922,-2905.13,0.00043835,30]
[356810367,1743235896932,-7170.52,0.00043835,2]
[356810368,1743235896942,-670.96,0.00043835,30]
[356810369,1743235896951,-1000.0,0.00043836,120]
[356810370,1743235896961,-1000.0,0.00043836,120]
[356810371,1743235896970,-1000.0,0.00043836,120]
[356810372,1743235896980,-150.0,0.00043842,30]
[356810373,1743235896990,-1000.0,0.00043863,120]
[356810374,1743235896999,-150.0,0.00043879,2]
[356810375,1743235897009,-1000.0,0.0004389,120]
[356810376,1743235897019,-26810.72925131,0.000439,120]
[356810377,1743235897029,-3972.27484171,0.000439,4]
[356810378,1743235897039,-141634.53878731,0.000439,30]
[356810379,1743235897049,-1111.0,0.00043907,30]
[356810380,1743235897059,-150.0,0.00043907,30]
[356810381,1743235897068,-975.75146103,0.00043917,120]
[356810382,1743235897077,-150.0,0.00043929,30]
[356810383,1743235897088,-150.0,0.00043951,30]
[356810384,1743235897098,-300.0,0.0004397,3]
[356810385,1743235897107,-587.060768,0.00043973,30]
[356810386,1743235897117,-150.0,0.00043986,30]
[356810387,1743235897127,-50000.0,0.00044,34]
[356810388,1743235897137,-50000.0,0.00044,44]
[356810389,1743235897147,-2068.27537163,0.00044,50]
[356810390,1743235897156,-1000.0,0.00044,120]
[356810391,1743235897165,-704.5072467,0.00044,2]
[356810392,1743235897176,-1400.0,0.00044,120]
[356810393,1743235897185,-62038.57174751,0.00044,4]
[356810394,1743235897194,-567.97,0.00044,2]
[356810395,1743235897203,-3000.0,0.00044,2]
[356810396,1743235897213,-963.32,0.00044,2]
[356810397,1743235897222,-522.87422367,0.00044,15]
[356810398,1743235897231,-519.068873,0.00044,57]
[356810399,1743235897241,-150.0,0.00044015,30]
[356810400,1743235897250,-150.0,0.00044065,30]
[356810401,1743235897259,-500.0,0.00044099,30]
[356810402,1743235897268,-150.0,0.00044101,30]
[356810403,1743235897278,-507.09,0.00044109,10]
[356810404,1743235897287,-963.21,0.00044109,30]
[356810405,1743235897298,-2452.46,0.00044109,30]
[356810406,1743235897307,-1143.8,0.00044109,2]
[356810407,1743235897316,-1389.75,0.00044109,30]
[356810408,1743235897325,-1145.24,0.00044109,30]
[356810409,1743235897336,-1315.47,0.00044109,7]
[356810410,1743235897346,-644.97,0.00044109,30]
[356810411,1743235897356,-620.95,0.00044109,30]
[356810412,1743235897366,-704.24,0.00044109,30]
[356810413,1743235897376,-635.2,0.00044109,30]
[356810414,1743235897385,-1673.28,0.00044109,30]
[356810415,1743235897394,-2622.65,0.00044109,30]
[356810416,1743235897404,-500.0,0.00044109,30]
[356810417,1743235897413,-5318.98,0.00044109,12]
[356810418,1743235897423,-11680.42,0.00044109,30]
[356810419,1743235897432,-2113.54,0.00044109,30]
[356810420,1743235897441,-1037.22,0.00044109,30]
[356810421,1743235897450,-692.57,0.00044109,30]
[356810422,1743235897459,-7670.5,0.00044109,30]
[356810423,1743235897468,-1131.76,0.00044109,30]
[356810424,1743235897477,-1046.12,0.00044109,30]
[356810425,1743235897486,-562.84,0.00044109,30]
[356810426,1743235897495,-7414.18,0.00044109,2]
[356810427,1743235897505,-597.41,0.00044109,30]
[356810428,1743235897514,-28801.3,0.00044109,30]
[356810429,1743235897523,-620.17,0.00044109,30]
[356810430,1743235897533,-949.41,0.00044109,30]
[356810431,1743235897542,-1156.07,0.00044109,30]
[356810432,1743235897552,-2905.13,0.00044109,30]
[356810433,1743235897562,-7170.52,0.00044109,2]
[356810434,1743235897571,-190.088,0.00044125,120]
[356810435,1743235897580,-190.088,0.00044125,120]
[356810436,1743235897590,-150.0,0.00044127,30]
[356810437,1743235897600,-150.0,0.00044144,30]
[356810438,1743235897610,-500.0,0.00044175,30]
[356810439,1743235897620,-150.0,0.00044187,30]
[356810440,1743235897629,-150.0,0.00044223,30]
[356810441,1743235897642,-238.82,0.00044239,2]
[356810442,1743235897652,-150.0,0.00044274,30]
[356810443,1743235897664,-500.0,0.00044277,30]
[356810444,1743235897681,-2601.86,0.000443,2]
[356810445,1743235897691,-150.0,0.00044303,30]
[356810446,1743235897700,-150.0,0.00044303,30]
[356810447,1743235897711,-150.0,0.00044303,30]
[356810448,1743235897721,-17514.37181077,0.0004432,2]
[356810449,1743235897730,-1111.0,0.00044359,30]
[356810450,1743235897740,-150.0,0.0004436,30]
[356810451,1743235897754,-500.0,0.00044377,30]
[356810452,1743235897763,-500.0,0.00044381,30]
[356810453,1743235897773,-150.0,0.00044382,30]
[356810454,1743235897784,-507.09,0.00044383,10]
[356810455,1743235897794,-963.21,0.00044383,30]
[356810456,1743235897804,-2452.46,0.00044383,30]
[356810457,1743235897814,-1143.8,0.00044383,2]
[356810458,1743235897824,-1389.75,0.00044383,30]
[356810459,1743235897834,-1145.24,0.00044383,30]
[356810460,1743235897843,-1315.47,0.00044383,7]
[356810461,1743235897854,-644.97,0.00044383,30]
[356810462,1743235897863,-620.95,0.00044383,30]
[356810463,1743235897873,-704.24,0.00044383,30]
[356810464,1743235897882,-635.2,0.00044383,30]
[356810465,1743235897892,-1673.28,0.00044383,30]
[356810466,1743235897902,-2622.65,0.00044383,30]
[356810467,1743235897912,-500.0,0.00044383,30]
[356810468,1743235897922,-5318.98,0.00044383,12]
[356810469,1743235897931,-11680.42,0.00044383,30]
[356810470,1743235897941,-2113.54,0.00044383,30]
[356810471,1743235897951,-1037.22,0.00044383,30]
[356810472,1743235897961,-692.57,0.00044383,30]
[356810473,1743235897971,-7670.5,0.00044383,30]
[356810474,1743235897981,-1131.76,0.00044383,30]
[356810475,1743235897991,-1046.12,0.00044383,30]
[356810476,1743235898000,-562.84,0.00044383,30]
[356810477,1743235898010,-7414.18,0.00044383,2]
[356810478,1743235898020,-597.41,0.00044383,30]
[356810479,1743235898030,-28801.3,0.00044383,30]
[356810480,1743235898041,-620.17,0.00044383,30]
[356810481,1743235898051,-949.41,0.00044383,30]
[356810482,1743235898061,-1156.07,0.00044383,30]
[356810483,1743235898071,-2905.13,0.00044383,30]
[356810484,1743235898083,-7170.52,0.00044383,2]
[356810485,1743235898093,-500.0,0.0004439,30]
[356810486,1743235898103,-192.63,0.000444,120]
[356810487,1743235898113,-504.45,0.00044444,5]
[356810488,1743235898122,-150.0,0.00044446,30]
[356810489,1743235898132,-150.0,0.00044461,30]
[356810490,1743235898142,-500.0,0.00044468,30]
[356810491,1743235898152,-150.0,0.00044478,30]
[356810492,1743235898162,-9000.000001,0.000445,120]
[356810493,1743235898172,-248.34150105,0.000445,120]
[356810494,1743235898182,-152.69,0.00044521,2]
[356810495,1743235898192,-150.0,0.00044533,30]
[356810496,1743235898202,-150.0,0.0004454,30]
[356810497,1743235898212,-152.0,0.00044599,8]
[356810498,1743235898222,-898.1525354,0.000446,2]
[356810499,1743235898232,-150.0,0.00044619,30]
[356810500,1743235898241,-150.0,0.00044619,30]
[356810501,1743235898251,-218.01805058,0.0004465,2]
[356810502,1743235898260,-150.0,0.00044654,30]
[356810503,1743235898270,-507.28822103,0.00044657,10]
[356810504,1743235898279,-963.26117299,0.00044657,30]
[356810505,1743235898290,-2452.63208541,0.00044657,30]
[356810506,1743235898299,-1143.88445687,0.00044657,2]
[356810507,1743235898309,-1389.84552193,0.00044657,30]
[356810508,1743235898319,-1145.47910667,0.00044657,30]
[356810509,1743235898489,-1315.4865466,0.00044657,7]
[356810510,1743235898499,-645.13774822,0.00044657,30]
[356810511,1743235898510,-621.1232583,0.00044657,30]
[356810512,1743235898520,-704.36598422,0.00044657,30]
[356810513,1743235898529,-635.35917613,0.00044657,30]
[356810514,1743235898539,-1673.35812043,0.00044657,30]
[356810515,1743235898548,-2622.80070616,0.00044657,30]
[356810516,1743235898557,-403.70779186,0.00044657,30]
[356810517,1743235898567,-5319.17906893,0.00044657,12]
[356810518,1743235898576,-11680.51410016,0.00044657,30]
[356810519,1743235898586,-2113.68151754,0.00044657,30]
[356810520,1743235898596,-1037.34085752,0.00044657,30]
[356810521,1743235898605,-692.61434371,0.00044657,30]
[356810522,1743235898615,-7670.69926551,0.00044657,30]
[356810523,1743235898626,-1131.85405941,0.00044657,30]
[356810524,1743235898635,-1046.35577817,0.00044657,30]
[356810525,1743235898645,-562.97971589,0.00044657,30]
[356810526,1743235898654,-7414.25361533,0.00044657,2]
[356810527,1743235898668,-597.51339504,0.00044657,30]
[356810528,1743235898678,-28801.42141253,0.00044657,30]
[356810529,1743235898689,-620.39526977,0.00044657,30]
[356810530,1743235898699,-949.55237332,0.00044657,30]
[356810531,1743235898708,-1156.18817814,0.00044657,30]
[356810532,1743235898719,-2905.13500969,0.00044657,30]
[356810533,1743235898729,-7170.57209377,0.00044657,2]
[356810534,1743235898738,-500.0,0.00044664,30]
[356810535,1743235898748,-500.0,0.00044665,30]
[356810536,1743235898757,-150.0,0.00044698,30]
[356810537,1743235898767,-150.0,0.00044705,30]
[356810538,1743235898776,-1911.07716655,0.00044713,2]
[356810539,1743235898786,-737.77,0.00044769,2]
[356810540,1743235898795,-150.0,0.00044777,30]
[356810541,1743235898806,-502.43592337,0.00044789,30]
[356810542,1743235898815,-150.0,0.00044792,30]
[356810543,1743235898824,-3000.0,0.000448,7]
[356810544,1743235898836,-500.0,0.00044807,30]
[356810545,1743235898845,-1111.0,0.00044812,30]
[356810546,1743235898855,-150.0,0.0004483,30]
[356810547,1743235898865,-150.0,0.0004483,30]
[356810548,1743235898875,-500.0,0.00044836,120]
[356810549,1743235898886,-500.0,0.00044854,30]
[356810550,1743235898895,-150.0,0.00044856,30]
[356810551,1743235898904,-150.0,0.00044878,30]
[356810552,1743235898915,-138084.52281128,0.0004491,30]
[356810553,1743235898926,-150.0,0.00044935,30]
[356810554,1743235898935,-150.0,0.00044956,30]
[356810555,1743235898946,-151.50512532,0.00044956,30]
[356810556,1743235898956,-150.0,0.00044956,30]
[356810557,1743235898966,-345.25698068,0.00044956,30]
[356810558,1743235898975,-150.0,0.00044956,30]
[356810559,1743235898985,-345.25698068,0.00044956,30]
[356810560,1743235898995,-150.0,0.00044964,30]
[356810561,1743235899005,-50000.0,0.00045,45]
[356810562,1743235899015,-50000.0,0.00045,35]
[356810563,1743235899025,-1000.0,0.00045,2]
[356810564,1743235899035,-1190.74445741,0.00045,120]
[356810565,1743235899045,-279.53,0.00045,120]
[356810566,1743235899056,-279.53,0.00045,120]
[356810567,1743235899066,-629.08,0.00045,4]
[356810568,1743235899077,-507.49,0.00045,30]
[356810569,1743235899090,-17627.92982121,0.00045,30]
[356810570,1743235899101,-546.81878677,0.00045,120]
[356810571,1743235899110,-314.0,0.00045,120]
[356810572,1743235899121,-160.51956813,0.00045,120]
[356810573,1743235899132,-262.27579524,0.00045,120]
[356810574,1743235899143,-1026.72,0.00045,120]
[356810575,1743235899153,-25933.44827023,0.00045,30]
[356810576,1743235899163,-4209.44,0.00045,120]
[356810577,1743235899174,-26338.78,0.00045,120]
[356810578,1743235899183,-150.0,0.00045,85]
[356810579,1743235899193,-488.19405765,0.00045,40]
[356810580,1743235899204,-750.0,0.00045,2]
[356810581,1743235899214,-157.0,0.00045,90]
[356810582,1743235899224,-150.0,0.00045006,30]
[356810583,1743235899234,-500.0,0.00045008,30]
[356810584,1743235899244,-508.23505582,0.00045011,30]
[356810585,1743235899256,-150.0,0.00045015,30]
[356810586,1743235899266,-500.0,0.00045042,30]
[356810587,1743235899276,-150.0,0.0004505,30]
[356810588,1743235899286,-150.0,0.00045094,30]
[356810589,1743235899301,-150.0,0.00045137,30]
[356810590,1743235899311,-150.0,0.00045173,30]
[356810591,1743235899322,-500.0,0.00045178,30]
[356810592,1743235899332,-150.0,0.00045182,30]
[356810593,1743235899342,-1065.0,0.00045203,30]
[356810594,1743235899351,-500.0,0.00045205,7]